bitfinex-derivatives/quotes_ETHF0:USTF0_20241008
["timestamp","ask_amount","ask_price","bid_price","bid_amount"]
[1728390568655,1.67259621,2437.4,2437.3,0.41043]
[1728390568861,1.67259621,2437.4,2437.3,0.95467311]
[1728390572062,1.67259621,2437.4,2437.3,0.41043]
[1728390572263,1.67259621,2437.4,2437.3,0.954669]
[1728390576867,2.08300621,2437.4,2437.3,0.41043]
[1728390577171,2.08300621,2437.4,2437.3,0.95470704]
[1728390577471,2.08300621,2437.4,2437.3,0.41043]
[1728390577669,2.08300621,2437.4,2437.3,0.95470318]
[1728390577866,1.67259621,2437.4,2437.3,0.9547042]
[1728390578273,1.67259621,2437.4,2437.3,0.41043]
[1728390579574,1.67259621,2437.4,2437.3,0.95468786]
[1728390579771,1.67259621,2437.4,2437.3,0.41043]
[1728390579976,0.41043,2437.3,2437.2,0.41043]
[1728390580169,1.42903,2437.4,2437.3,0.41043]
[1728390580574,2.08302621,2437.4,2437.3,0.41043]
[1728390581573,4.88039621,2437.4,2437.0,2.101532]
[1728390581773,0.41045,2437.2,2437.1,0.95469724]
[1728390582174,1.06444621,2437.2,2437.1,0.41044]
[1728390583177,1.06444621,2437.2,2437.1,0.9547527]
[1728390583580,1.06444621,2437.2,2437.1,0.41044]
[1728390584682,0.65399621,2437.2,2437.1,0.41044]
[1728390585082,0.65399621,2437.2,2437.1,0.95485085]
[1728390588493,0.65399621,2437.2,2437.1,0.41044]
[1728390588693,0.65399621,2437.2,2437.1,0.95482288]
[1728390591091,0.65399621,2437.2,2437.1,0.95484288]
[1728390591495,1.06444621,2437.2,2437.1,0.95484288]
[1728390592088,1.06444621,2437.2,2437.1,0.95480256]
[1728390592686,0.65399621,2437.2,2437.1,0.95480256]
[1728390593889,1.06444621,2437.2,2437.1,0.95480256]
[1728390595083,1.06444621,2437.2,2437.1,0.41046]
[1728390597179,0.41045,2437.2,2437.1,0.41046]
[1728390597386,1.06444621,2437.2,2437.1,0.41046]
[1728390599987,1.06444621,2437.2,2437.1,0.95482678]
[1728390600701,0.65399621,2437.2,2437.1,0.95483328]
[1728390601197,0.65399621,2437.2,2437.1,3.30581074]
[1728390601397,0.65399621,2437.2,2437.1,4.38117274]
[1728390601595,0.65399621,2437.2,2437.1,4.93057274]
[1728390602099,0.65399621,2437.2,2437.1,0.95484021]
[1728390602494,1.06444621,2437.2,2437.1,0.95484021]
[1728390602996,1.06444621,2437.2,2437.1,0.54438021]
[1728390604206,0.41051,2436.8,2436.7,1.485882]
[1728390604403,0.41051,2436.8,2436.7,1.41558246]
[1728390604404,1.06450621,2436.8,2436.7,1.41558246]
[1728390604602,2.54452621,2436.8,2436.7,0.54446709]
[1728390604900,2.11910621,2436.8,2436.7,0.54448952]
[1728390605101,2.11910621,2436.8,2436.5,1.612662]
[1728390605302,0.65399621,2436.6,2436.5,0.41056]
[1728390605608,0.65399621,2436.6,2436.5,0.95486179]
[1728390605793,1.06454621,2436.6,2436.5,0.95486179]
[1728390605994,0.65399621,2436.6,2436.5,0.95486179]
[1728390607500,0.65399621,2436.6,2436.5,2.43486179]
[1728390607999,2.02335,2437.2,2437.0,0.41047]
[1728390608408,0.65399621,2437.1,2437.0,0.41047]
[1728390608905,0.65399621,2437.1,2437.0,0.95431249]
[1728390612013,0.65399621,2437.1,2437.0,0.41047]
[1728390612208,0.65399621,2437.1,2437.0,2.0299039]
[1728390612511,0.65399621,2437.1,2437.0,2.90013139]
[1728390612707,0.65399621,2437.1,2437.0,2.0299039]
[1728390612903,0.65399621,2437.1,2437.0,0.95434811]
[1728390613899,2.19879621,2437.1,2437.0,0.95434811]
[1728390615306,2.60925621,2437.1,2436.9,0.41049]
[1728390615519,1.95526,2437.1,2436.9,0.41049]
[1728390615809,0.65399621,2437.0,2436.9,0.41049]
[1728390616211,0.65399621,2437.0,2436.9,0.95445846]
[1728390616909,5.34179621,2437.0,2436.8,0.41051]
[1728390617112,1.06449621,2436.9,2436.7,0.41052]
[1728390617308,1.06450621,2436.8,2436.5,2.55555579]
[1728390617510,0.5344,2436.7,2436.6,0.95453659]
[1728390617709,0.483,2436.7,2436.6,0.95453659]
[1728390618009,1.13699621,2436.7,2436.6,0.95453659]
[1728390618214,2.22519621,2436.7,2436.6,0.95453659]
[1728390618903,2.22519621,2436.7,2436.6,0.41054]
[1728390618904,0.65399621,2436.7,2436.6,0.41054]
[1728390619105,0.41045,2437.2,2437.0,0.41047]
[1728390619313,0.41045,2437.2,2437.0,1.89047]
[1728390619314,0.65399621,2437.1,2437.0,1.89047]
[1728390619807,0.65399621,2437.1,2437.0,0.41047]
[1728390620316,0.65399621,2437.1,2436.8,1.48]
[1728390620612,0.65399621,2436.9,2436.8,0.41051]
[1728390621018,1.06449621,2436.9,2436.8,0.41051]
[1728390621712,0.65399621,2436.9,2436.8,0.41051]
[1728390622010,1.06449621,2436.9,2436.6,2.0133]
[1728390622215,0.4105,2436.9,2436.7,0.95450367]
[1728390622519,0.4105,2436.9,2436.7,0.41052]
[1728390622815,0.65399621,2436.8,2436.7,0.41052]
[1728390623206,0.65399621,2436.8,2436.7,0.95447089]
[1728390623406,0.65399621,2436.8,2436.7,0.41052]
[1728390624416,0.65399621,2436.8,2436.7,0.95446211]
[1728390625219,0.65399621,2436.8,2436.7,0.95446185]
[1728390625424,0.65399621,2436.8,2436.7,0.41052]
[1728390627211,0.65399621,2436.8,2436.7,1.89052]
[1728390627418,0.65399621,2436.8,2436.7,2.4343928]
[1728390627819,3.2078,2436.9,2436.8,0.41051]
[1728390628012,0.65399621,2436.9,2436.8,4.03638319]
[1728390628213,0.65399621,2436.9,2436.8,7.78250764]
[1728390628518,0.65399621,2436.9,2436.8,7.78251174]
[1728390629411,0.5239,2437.3,2437.2,0.41045]
[1728390629914,1.17789621,2437.3,2437.2,0.41045]
[1728390633116,1.17789621,2437.3,2436.9,2.10160838]
[1728390633416,0.41045,2437.2,2437.0,0.95431522]
[1728390633617,0.5531,2437.1,2437.0,0.41047]
[1728390633815,1.75019621,2437.1,2437.0,0.41047]
[1728390636014,1.75019621,2437.1,2437.0,0.95434286]
[1728390638217,0.65399621,2437.1,2437.0,0.95434286]
[1728390638416,0.65399621,2437.1,2437.0,8.39058215]
[1728390638618,0.65399621,2437.1,2437.0,9.53913431]
[1728390639221,1.1239,2437.5,2437.4,0.41041]
[1728390639617,1.77789621,2437.5,2437.4,0.41041]
[1728390640218,1.77789621,2437.5,2437.1,1.0753146]
[1728390640522,0.65399621,2437.2,2437.1,0.41046]
[1728390640717,0.65399621,2437.2,2437.1,0.95420074]
[1728390642617,0.65399621,2437.2,2437.1,0.95414013]
[1728390646028,0.65399621,2437.2,2437.1,0.41046]
[1728390647124,0.65399621,2437.2,2437.1,0.95403138]
[1728390647521,0.65399621,2437.2,2437.1,2.58220766]
[1728390647718,0.65399621,2437.2,2437.1,1.50688194]
[1728390648921,0.65399621,2437.2,2437.1,0.95398194]
[1728390650933,0.65399621,2437.2,2437.1,0.41046]
[1728390651132,0.65399621,2437.2,2437.1,0.95392422]
[1728390651927,3.2,2438.2,2437.1,15.47603314]
[1728390652132,3.2,2438.2,2437.7,3.61036]
[1728390652133,1.1103,2437.8,2437.7,3.61036]
[1728390652633,1.76429621,2437.8,2437.7,2.43371689]
[1728390652835,1.76429621,2437.8,2437.7,1.89036]
[1728390654540,1.76429621,2437.8,2437.7,0.41036]
[1728390656239,2.17464621,2437.8,2437.3,5.3084955]
[1728390656431,1.52065,2437.8,2437.6,0.41037]
[1728390657041,0.65399621,2437.7,2437.6,0.41037]
[1728390660434,0.65399621,2437.7,2437.3,1.02607]
[1728390660645,0.65399621,2437.4,2437.3,0.41042]
[1728390661438,1.72519621,2437.4,2437.3,0.41042]
[1728390665342,1.72519621,2437.4,2437.0,3.2078]
[1728390665536,0.65399621,2437.1,2437.0,3.2078]
[1728390665731,0.65399621,2437.1,2437.0,3.61828]
[1728390667844,1.21499621,2437.1,2437.0,3.61828]
[1728390669642,0.41048,2437.0,2436.7,1.0746255]
[1728390669846,1.0434,2437.0,2436.6,3.2350955]
[1728390670042,0.65399621,2436.8,2436.7,0.41053]
[1728390675355,0.65399621,2436.8,2436.7,3.61833]
[1728390675551,0.65399621,2436.8,2436.7,4.13523]
[1728390675754,0.65399621,2436.8,2436.7,4.67848889]
[1728390676049,0.65399621,2436.8,2436.7,4.13523]
[1728390676642,0.65399621,2436.8,2436.7,0.92743]
[1728390680862,0.65399621,2436.8,2436.7,4.13523]
[1728390681049,0.65399621,2436.8,2436.7,0.92743]
[1728390681547,0.65399621,2436.8,2436.7,4.13523]
[1728390682555,0.65399621,2436.8,2436.7,4.67830616]
[1728390683056,4.54538,2437.6,2437.4,0.4104]
[1728390683252,1.1177,2437.5,2437.4,0.4104]
[1728390683455,1.77169621,2437.5,2437.4,0.4104]
[1728390684456,2.29849621,2437.5,2437.4,0.4104]
[1728390686757,2.29849621,2437.5,2437.1,1.02613]
[1728390686955,0.65399621,2437.2,2437.1,0.41046]
[1728390687460,1.58444621,2437.2,2437.1,0.41046]
[1728390687958,1.58444621,2437.2,2436.7,5.20947884]
[1728390687959,0.41048,2437.0,2436.7,3.2078]
[1728390688150,0.65399621,2436.8,2436.7,0.41053]
[1728390688953,0.65399621,2436.8,2436.7,0.95362078]
[1728390689555,0.65399621,2436.8,2436.7,0.41053]
[1728390690751,0.65399621,2436.8,2436.5,3.2]
[1728390690955,1.0453,2436.7,2436.6,0.95360878]
[1728390691356,1.69929621,2436.7,2436.6,0.41053]
[1728390691866,0.65399621,2436.7,2436.6,0.41053]
[1728390692055,0.65399621,2436.7,2436.6,0.9536144]
[1728390693754,0.65399621,2436.7,2436.6,0.41053]
[1728390694354,0.65399621,2436.7,2436.5,0.41055]
[1728390694563,2.24229621,2436.6,2436.5,0.41055]
[1728390697054,2.24229621,2436.6,2436.1,6.4078]
[1728390697259,0.65399621,2436.3,2436.2,0.41061]
[1728390711061,0.41051,2436.9,2436.2,2.81618309]
[1728390711062,0.5212,2436.8,2436.2,2.81618309]
[1728390711268,0.5212,2436.8,2436.7,0.41053]
[1728390711269,1.0584,2436.8,2436.7,0.41053]
[1728390711773,5.1624,2436.8,2436.7,0.41053]
[1728390714178,5.57291,2436.8,2436.7,0.41053]
[1728390720777,0.41057,2436.5,2436.4,0.41057]
[1728390721072,0.41059,2436.4,2436.3,0.41059]
[1728390721279,0.95059,2436.4,2436.3,0.41059]
[1728390721670,0.54,2436.4,2436.3,0.41059]
[1728390721875,1.49798,2436.4,2436.3,0.41059]
[1728390722175,1.0874,2436.4,2436.3,0.41059]
[1728390722676,1.49799,2436.4,2436.2,0.4106]
[1728390722883,1.49799,2436.4,2436.3,0.4106]
[1728390724083,0.4106,2436.3,2436.2,0.4106]
[1728390728675,1.49799,2436.4,2436.2,0.4106]
[1728390728881,1.49799,2436.4,2436.1,3.2078]
[1728390728882,1.0874,2436.4,2436.1,3.2078]
[1728390729073,1.0874,2436.4,2436.3,0.4106]
[1728390729582,1.49799,2436.4,2436.2,0.4106]
[1728390732482,1.0874,2436.4,2436.2,0.4106]
[1728390732683,0.4106,2436.3,2436.2,0.4106]
[1728390732886,0.4106,2436.3,2436.1,3.61842]
[1728390733086,0.5155,2436.2,2436.1,3.2078]
[1728390733283,0.92611,2436.2,2436.1,3.2078]
[1728390733679,0.92611,2436.2,2436.1,3.61843]
[1728390734091,0.92611,2436.2,2436.1,3.2078]
[1728390735584,0.92611,2436.2,2436.1,3.61843]
[1728390735986,0.92611,2436.2,2436.1,0.41063]
[1728390736184,0.92611,2436.2,2435.9,2.55617635]
[1728390736388,0.92611,2436.2,2436.0,0.41065]
[1728390736577,5.71438,2436.1,2435.7,1.61426453]
[1728390736777,5.71438,2436.1,2435.4,1.48691635]
[1728390736778,4.6878,2435.8,2435.4,1.48691635]
[1728390737080,4.6878,2435.8,2435.4,0.41074]
[1728390737081,0.41073,2435.6,2435.4,0.41074]
[1728390737390,2.5859,2435.5,2435.4,0.41074]
[1728390737900,0.5616,2435.7,2435.6,0.41072]
[1728390738077,1.088,2435.7,2435.6,0.41072]
[1728390738279,5.1936,2435.7,2435.6,0.41072]
[1728390738981,3.753,2435.8,2435.7,0.4107]
[1728390739590,3.2078,2435.8,2435.7,0.4107]
[1728390740495,1.634,2436.1,2435.5,5.31652]
[1728390740884,2.04464,2436.1,2435.9,0.41066]
[1728390741385,0.5264,2436.1,2436.0,0.41065]
[1728390741885,4.6312,2436.1,2436.0,0.41065]
[1728390743985,4.1048,2436.1,2436.0,0.41065]
[1728390744185,0.5148,2436.3,2436.2,0.41061]
[1728390744886,0.5433,2436.4,2436.0,0.5575]
[1728390745091,1.0581,2436.4,2436.3,0.4106]
[1728390745692,0.5148,2436.4,2436.0,0.5575]
[1728390745889,0.5148,2436.4,2436.3,0.4106]
[1728390746084,3.7301,2436.6,2436.1,1.02658]
[1728390746281,3.7301,2436.6,2436.5,0.41056]
[1728390746688,3.2078,2436.6,2436.5,0.41056]
[1728390746989,0.5148,2436.7,2436.5,0.41056]
[1728390747595,0.93372,2436.8,2436.7,0.41053]
[1728390747596,0.5232,2436.8,2436.7,0.41053]
[1728390748092,4.6272,2436.8,2436.6,0.41053]
[1728390748302,4.6272,2436.8,2436.7,0.41053]
[1728390748489,0.5232,2436.8,2436.7,0.41053]
[1728390749189,3.2078,2436.9,2436.8,0.41051]
[1728390749390,0.41046,2437.1,2436.5,1.02641]
[1728390749590,4.71446,2437.2,2436.9,0.41049]
[1728390749788,1.094,2437.2,2437.1,0.41046]
[1728390750193,3.2078,2437.3,2437.2,0.41045]
[1728390750397,0.4104,2437.5,2437.2,0.41044]
[1728390750785,0.4104,2437.5,2437.0,0.5596]
[1728390751093,48.73029,2437.6,2437.2,0.41043]
[1728390751998,48.73028,2437.6,2437.3,0.41042]
[1728390752294,48.3199,2437.6,2437.3,0.41042]
[1728390752500,4.1024,2437.5,2437.3,0.41042]
[1728390752797,48.3199,2437.6,2437.4,0.41041]
[1728390752798,7.5199,2437.6,2437.4,0.41041]
[1728390752994,4.3099,2437.6,2437.5,0.4104]
[1728390753298,8.4123,2437.6,2437.5,0.4104]
[1728390753499,1.1021,2437.6,2437.5,0.4104]
[1728390753800,4.1024,2437.6,2437.5,0.4104]
[1728390754400,4.1024,2437.6,2437.0,6.9774]
[1728390754604,3.62038,2437.6,2437.3,0.41042]
[1728390755203,0.4104,2437.5,2437.2,0.41043]
[1728390755503,0.5515,2437.4,2437.3,0.41043]
[1728390758298,0.5515,2437.4,2437.0,1.58579]
[1728390758602,0.5515,2437.4,2437.3,0.41043]
[1728390786812,2.44192,2437.4,2437.2,0.41043]
[1728390787018,1.073,2437.3,2437.2,0.41043]
[1728390790924,4.6878,2437.7,2437.5,0.4104]
[1728390790925,1.1225,2437.6,2437.5,0.4104]
[1728390791215,4.135,2437.9,2437.6,0.41038]
[1728390791413,4.135,2437.9,2437.7,0.41035]
[1728390791414,1.48,2437.9,2437.7,0.41035]
[1728390791620,1.6775,2437.8,2437.6,0.41037]
[1728390791816,1.48,2437.7,2437.2,0.5584]
[1728390792017,1.48,2437.5,2437.4,0.4104]
[1728390792407,1.48,2437.5,2437.4,0.41041]
[1728390792813,1.48,2437.5,2437.3,0.41041]
[1728390793015,1.6384,2437.4,2437.3,0.41041]
[1728390793223,1.6384,2437.4,2437.3,0.95425273]
[1728390795317,1.6384,2437.4,2437.3,1.82578228]
[1728390795620,1.6384,2437.4,2437.3,2.90071441]
[1728390796918,1.6384,2437.4,2437.3,4.64871538]
[1728390797123,1.0752,2437.4,2437.3,5.18618144]
[1728390797319,4.6878,2437.8,2437.3,6.20792325]
[1728390797518,4.3299,2437.8,2437.7,0.41036]
[1728390797827,4.3299,2437.8,2437.7,0.95420273]
[1728390798918,1.1221,2437.8,2437.7,0.95420273]
[1728390799122,1.1221,2437.8,2437.7,0.41036]
[1728390799319,1.1221,2437.8,2437.7,0.95496012]
[1728390799721,0.5644,2437.8,2437.7,0.95496012]
[1728390800221,0.5644,2437.8,2437.7,1.52086012]
[1728390800424,0.5545,2437.9,2437.8,0.41034]
[1728390800622,0.5545,2437.9,2437.8,0.95494012]
[1728390801123,2.0345,2437.9,2437.6,1.6244312]
[1728390801323,2.0345,2437.9,2437.7,0.9546418]
[1728390801324,2.44483,2437.9,2437.7,0.9546418]
[1728390801626,2.44483,2437.9,2437.7,0.41035]
[1728390802022,2.0345,2437.9,2437.5,1.0770312]
[1728390802228,2.44484,2437.9,2437.7,0.41035]
[1728390802826,2.44484,2437.9,2437.5,2.1030212]
[1728390803026,2.44484,2437.9,2437.7,0.41035]
[1728390803219,2.0345,2437.9,2437.5,2.1030212]
[1728390803424,2.0345,2437.9,2437.6,0.54423771]
[1728390803728,1.89038,2437.7,2437.5,0.41039]
[1728390803927,0.526,2437.6,2437.5,0.41039]
[1728390804227,1.0508,2437.6,2437.5,0.95465884]
[1728390804827,1.0508,2437.6,2437.5,0.54426884]
[1728390805129,1.46118,2437.6,2437.4,0.4104]
[1728390805328,0.5393,2437.5,2437.4,0.4104]
[1728390805631,0.9497,2437.5,2437.4,0.544288]
[1728390806034,0.5393,2437.5,2437.2,1.6276312]
[1728390806225,0.5393,2437.5,2437.4,0.41041]
[1728390806430,0.5393,2437.5,2437.4,0.95469291]
[1728390807934,1.0508,2437.6,2437.5,0.4104]
[1728390815131,0.5181,2437.7,2437.4,4.6878]
[1728390815339,1.0763,2437.9,2437.8,0.41034]
[1728390815641,0.5429,2437.9,2437.8,0.41034]
[1728390815835,2.0417,2438.2,2437.8,0.41034]
[1728390815836,0.5334,2438.1,2437.8,0.41034]
[1728390816038,0.5334,2438.1,2438.0,0.41031]
[1728390823539,0.5429,2438.2,2438.1,0.41029]
[1728390823746,0.5181,2438.4,2438.3,0.41026]
[1728390825639,0.92834,2438.4,2438.2,0.5284]
[1728390825940,0.41027,2438.3,2438.1,0.41028]
[1728390826147,0.5378,2438.2,2438.1,0.41028]
[1728390828048,3.7259,2438.4,2438.3,0.41026]
[1728390828550,3.7259,2438.4,2438.0,3.02137]
[1728390828551,3.7259,2438.4,2438.0,4.74137]
[1728390828744,3.7259,2438.4,2438.3,0.41026]
[1728390830541,4.13614,2438.4,2438.3,0.41026]
[1728390830748,3.7259,2438.4,2438.3,0.41026]
[1728390831347,4.13614,2438.4,2438.3,0.41026]
[1728390834053,0.41028,2438.2,2438.1,0.41028]
[1728390837949,0.4103,2438.1,2438.0,0.41031]
[1728390838163,0.41032,2438.0,2437.6,1.02591]
[1728390838458,1.50592,2438.0,2437.8,0.41033]
[1728390839254,1.0956,2438.0,2437.6,1.56361]
[1728390839657,1.0956,2438.0,2437.9,0.41033]
[1728390840256,1.50591,2438.0,2437.9,0.41033]
[1728390840559,1.0956,2438.0,2437.9,0.41033]
[1728390841667,0.5181,2438.1,2437.7,1.54521]
[1728390841958,0.5181,2438.1,2438.0,0.41031]
[1728390847261,0.5181,2438.1,2437.6,1.6155468]
[1728390847262,0.5181,2438.1,2437.6,2.1029812]
[1728390847466,0.9284,2438.1,2438.0,0.41031]
[1728390847765,0.5181,2438.1,2438.0,0.41031]
[1728390848167,0.92839,2438.1,2437.9,0.41031]
[1728390848367,0.5181,2438.1,2438.0,0.41031]
[1728390849567,0.9284,2438.1,2437.9,0.41032]
[1728390852671,0.41035,2437.8,2437.6,0.41037]
[1728390852861,2.07726,2437.7,2437.5,0.41038]
[1728390853366,2.07726,2437.7,2437.6,0.41038]
[1728390853367,1.6669,2437.7,2437.6,0.41038]
[1728390860967,1.6669,2437.7,2437.4,1.9955]
[1728390861163,0.41038,2437.6,2437.5,0.41039]
[1728390862177,2.07727,2437.7,2437.5,0.41039]
[1728390866483,1.6669,2437.7,2437.4,1.48]
[1728390866680,2.07727,2437.7,2437.5,0.41039]
[1728390868278,2.07727,2437.7,2437.4,1.48]
[1728390868279,1.6669,2437.7,2437.4,1.48]
[1728390868481,1.6669,2437.7,2437.5,0.4104]
[1728390868785,2.07726,2437.7,2437.5,0.4104]
[1728390869981,1.6669,2437.7,2437.4,1.48]
[1728390870183,1.6669,2437.7,2437.6,0.41038]
[1728390870377,1.6669,2437.7,2437.4,1.48]
[1728390870584,2.07726,2437.7,2437.5,0.41038]
[1728390871485,2.07726,2437.7,2437.5,0.4104]
[1728390874693,2.07726,2437.7,2437.3,1.0770312]
[1728390874694,1.6669,2437.7,2437.3,1.0770312]
[1728390874895,0.4104,2437.5,2437.3,0.41042]
[1728390875088,1.02596,2437.6,2437.2,0.41045]
[1728390875288,0.96593,2437.4,2437.2,0.41044]
[1728390875597,1.0834,2437.3,2437.2,0.41044]
[1728390875791,1.0834,2437.3,2437.2,0.95392593]
[1728390877597,1.0834,2437.3,2437.2,0.41044]
[1728390879394,1.49384,2437.3,2437.1,1.89046]
[1728390880389,1.0834,2437.3,2437.1,1.48]
[1728390880590,1.0834,2437.3,2437.2,0.41045]
[1728390883694,1.0834,2437.3,2436.9,3.01719561]
[1728390883892,1.49384,2437.3,2437.1,0.41046]
[1728390884592,0.41045,2437.2,2437.1,0.41046]
[1728390885799,1.49384,2437.3,2437.1,0.41046]
[1728390886493,0.41045,2437.2,2437.1,0.41046]
[1728390886693,1.49384,2437.3,2437.1,0.41046]
[1728390886988,1.49384,2437.3,2437.1,0.41045]
[1728390888895,1.0834,2437.3,2437.1,0.41045]
[1728390889096,1.49384,2437.3,2437.1,0.41045]
[1728390889293,1.49384,2437.3,2437.2,0.41045]
[1728390889894,1.0834,2437.3,2436.9,2.50624]
[1728390890193,1.49384,2437.3,2437.2,0.41045]
[1728390890896,1.49384,2437.3,2436.9,2.50624]
[1728390890897,0.41048,2437.0,2436.9,0.41049]
[1728390891198,0.41047,2437.1,2437.0,0.41047]
[1728390891401,0.91727,2437.1,2437.0,0.41047]
[1728390896209,0.91727,2437.1,2436.9,0.41048]
[1728390896505,0.91727,2437.1,2437.0,0.41048]
[1728390896700,0.91727,2437.1,2436.7,1.55703]
[1728390897101,0.91726,2437.1,2437.0,0.41048]
[1728390898212,0.91726,2437.1,2436.9,0.41049]
[1728390899301,0.91726,2437.1,2436.7,0.5307]
[1728390899302,0.41049,2437.0,2436.7,0.5307]
[1728390899505,0.5187,2436.9,2436.7,0.5307]
[1728390899707,0.5187,2436.9,2436.8,0.41051]
[1728390900303,0.92921,2436.9,2436.7,0.41052]
[1728390900610,0.5259,2436.8,2436.7,0.41052]
[1728390901018,0.5259,2436.8,2436.6,0.5229]
[1728390901019,0.41053,2436.7,2436.6,0.93344]
[1728390901202,0.5259,2436.8,2436.5,3.2078]
[1728390901407,0.5259,2436.8,2436.7,0.41053]
[1728390902815,0.93641,2436.8,2436.7,0.41053]
[1728390903320,0.5259,2436.8,2436.2,1.0770312]
[1728390903529,0.41056,2436.6,2436.4,0.41057]
[1728390903713,0.5476,2436.5,2436.4,0.41057]
[1728390903919,1.0691,2436.5,2436.4,0.41057]
[1728390904417,3.2078,2437.0,2436.9,0.4105]
[1728390904621,4.54546,2437.2,2437.0,0.41048]
[1728390904622,0.5215,2437.1,2437.0,0.41048]
[1728390904812,4.6878,2437.4,2437.0,1.48]
[1728390905021,5.09821,2437.4,2437.2,0.41044]
[1728390905415,0.41044,2437.3,2437.1,0.5481]
[1728390905625,3.2078,2437.4,2437.3,0.41043]
[1728390906221,3.61822,2437.4,2437.2,0.41044]
[1728390906520,1.89044,2437.3,2436.9,2.07893]
[1728390906726,0.5499,2437.2,2437.1,0.41046]
[1728390907122,5.2377,2437.4,2437.3,0.41043]
[1728390907623,5.64811,2437.4,2437.3,0.41043]
[1728390907823,5.64811,2437.4,2437.0,2.0235]
[1728390908024,5.64811,2437.4,2437.2,0.41043]
[1728390908226,5.64811,2437.4,2437.3,0.41043]
[1728390909028,6.16791,2437.4,2437.3,0.41043]
[1728390910923,5.7575,2437.4,2437.3,0.41043]
[1728390911122,6.16791,2437.4,2437.3,0.41043]
[1728390912621,4.2775,2437.4,2437.3,0.41043]
[1728390912822,3.2078,2437.4,2437.3,0.41043]
[1728390913022,2.5578,2437.6,2437.5,0.4104]
[1728390913727,7.07058,2437.6,2437.5,0.4104]
[1728390914031,2.96818,2437.6,2437.5,0.4104]
[1728390914232,7.07058,2437.6,2437.5,0.4104]
[1728390914524,2.96818,2437.6,2437.5,0.4104]
[1728390916227,2.5578,2437.6,2437.5,0.4104]
[1728390916732,3.721,2437.8,2437.7,0.41036]
[1728390916920,3.2078,2437.8,2437.7,0.41036]
[1728390917421,3.2078,2437.8,2437.7,0.95166]
[1728390917923,3.2078,2437.8,2437.3,5.71388]
[1728390918121,3.2078,2437.8,2437.3,1.9889]
[1728390918122,3.0698,2437.7,2437.3,1.9889]
[1728390918322,3.48016,2437.7,2437.6,0.41038]
[1728390918822,0.41038,2437.6,2437.5,0.41039]
[1728390919025,3.48017,2437.7,2437.5,0.41039]
[1728390922427,0.4104,2437.5,2437.4,0.41041]
[1728390922827,0.41041,2437.5,2437.3,0.91932]
[1728390923025,0.41041,2437.5,2437.4,0.41041]
[1728390923225,0.4104,2437.5,2437.4,0.41041]
[1728390925335,3.48017,2437.7,2437.5,0.41038]
[1728390925532,3.2078,2438.1,2437.6,0.41038]
[1728390925831,0.41032,2438.0,2437.8,0.41033]
[1728390926028,0.41032,2438.0,2437.9,0.41033]
[1728390928736,1.89032,2438.0,2437.9,0.41033]
[1728390933339,1.48,2438.0,2437.7,1.0777]
[1728390933538,1.89032,2438.0,2437.9,0.41033]
[1728390938946,1.89032,2438.0,2437.6,0.552]
[1728390939139,1.89037,2437.8,2437.7,0.41035]
[1728390939638,2.43257,2437.8,2437.7,0.41035]
[1728390940142,0.95257,2437.8,2437.7,0.41035]
[1728390945239,0.41038,2437.7,2437.6,0.41037]
[1728390945440,0.41039,2437.6,2437.5,0.41039]
[1728390946046,1.46568,2437.7,2437.6,0.41038]
[1728390950150,1.46566,2437.7,2437.6,0.41038]
[1728390958361,1.0553,2437.7,2437.6,0.95464583]
[1728390958551,1.0553,2437.7,2437.6,0.95463199]
[1728390958745,1.0553,2437.7,2437.6,1.48823199]
[1728390959263,0.5365,2437.7,2437.6,2.96823199]
[1728390959656,0.5422,2437.8,2437.7,0.41036]
[1728390959858,0.5422,2437.8,2437.7,0.95461199]
[1728390960156,0.95373,2437.9,2437.8,0.41034]
[1728390960352,3.2078,2438.2,2438.1,0.41029]
[1728390960551,3.61809,2438.2,2438.0,0.4103]
[1728390960751,3.61809,2438.2,2438.1,0.41029]
[1728390961257,3.2078,2438.2,2438.1,0.41029]
[1728390962255,0.5034,2438.4,2438.3,0.41026]
[1728390962557,3.2078,2438.6,2438.5,0.41023]
[1728390962853,3.2078,2438.6,2438.5,0.95432739]
[1728390963257,3.2078,2438.6,2438.5,0.41023]
[1728390963450,3.2078,2438.6,2438.5,0.95385486]
[1728390964056,3.2078,2438.6,2438.5,0.41023]
[1728390964256,1.0546,2438.9,2438.4,3.0562]
[1728390964456,1.46476,2438.9,2438.7,0.41019]
[1728390964653,1.0546,2438.9,2438.7,0.41018]
[1728390965053,1.0546,2438.9,2438.8,0.41018]
[1728390965256,3.2078,2439.1,2438.8,1.48]
[1728390965455,3.2078,2439.1,2439.0,0.41014]
[1728390966262,3.61793,2439.1,2438.9,1.89015]
[1728390966462,3.61793,2439.1,2439.0,0.41014]
[1728390967460,3.61793,2439.1,2438.9,1.48]
[1728390967461,3.2078,2439.1,2438.9,1.48]
[1728390967663,0.41016,2439.0,2438.8,2.39986]
[1728390968058,0.41016,2439.0,2438.9,0.41016]
[1728390971968,0.41014,2439.0,2438.9,0.41016]
[1728390972562,0.41014,2439.1,2439.0,0.41014]
[1728390972866,3.2078,2439.2,2439.1,0.41013]
[1728390973068,3.61791,2439.2,2439.1,0.41013]
[1728390974157,3.2078,2439.2,2439.1,0.41013]
[1728390974362,3.2078,2439.2,2439.1,1.89013]
[1728390975268,0.41006,2439.5,2439.3,0.41008]
[1728390975470,3.2078,2439.6,2439.3,1.48]
[1728390975663,3.61785,2439.6,2439.5,0.41006]
[1728390975867,4.14815,2439.6,2439.5,0.41006]
[1728390976262,8.24735,2439.6,2439.4,0.93556]
[1728390976473,4.14815,2439.6,2439.4,0.5255]
[1728390976662,4.14815,2439.6,2439.5,0.41006]
[1728390976862,4.14815,2439.6,2439.3,1.48]
[1728390977167,0.41008,2439.4,2439.3,0.41008]